fUSD/lending_fUSD_20250503
["ID","MTS","AMOUNT","RATE_DAILY","PERIOD"]
[359740182,1746292239629,-450.0,0.00019612,2]
[359740184,1746292239639,-450.0,0.00019612,2]
[359740186,1746292239648,-450.0,0.00019612,2]
[359740188,1746292239657,-450.0,0.00019612,2]
[359740190,1746292239667,-450.0,0.00019612,2]
[359740192,1746292239677,-450.0,0.00019612,2]
[359740193,1746292239686,-493.93,0.00019612,2]
[359740195,1746292239696,-450.0,0.00019612,2]
[359740197,1746292239706,-483.42226741,0.00019612,2]
[359740199,1746292239716,-323.24746342,0.00019612,2]
[359740201,1746292239725,-450.0,0.00019612,2]
[359740203,1746292239735,-450.0,0.00019612,2]
[359740205,1746292239745,-450.0,0.00019612,2]
[359740207,1746292239754,-450.0,0.00019612,2]
[359740209,1746292239763,-450.0,0.00019612,2]
[359740211,1746292239772,-487.62,0.00019612,2]
[359740213,1746292239781,-450.0,0.00019612,2]
[359740215,1746292239791,-450.0,0.00019612,2]
[359740217,1746292239800,-450.0,0.00019612,2]
[359740219,1746292239809,-450.0,0.00019612,2]
[359740221,1746292239818,-376.58923022,0.00019612,2]
[359740223,1746292239827,-866.11,0.00019612,2]
[359740225,1746292239836,-772.19,0.00019612,2]
[359740226,1746292239846,-450.0,0.00019612,2]
[359740228,1746292239855,-480.61657555,0.00019612,2]
[359740230,1746292239865,-450.0,0.00019612,2]
[359740232,1746292239874,-450.0,0.00019612,2]
[359740234,1746292239883,-450.0,0.00019612,2]
[359740236,1746292239894,-1677.02,0.00019612,2]
[359740238,1746292239903,-450.0,0.00019612,2]
[359740240,1746292239912,-476.86,0.00019612,2]
[359740242,1746292239922,-450.0,0.00019612,2]
[359740244,1746292239932,-185.50934107,0.00019612,2]
[359740246,1746292239942,-498.42,0.00019612,2]
[359740248,1746292239951,-498.13,0.00019612,2]
[359740250,1746292239960,-450.0,0.00019612,2]
[359740252,1746292239970,-450.0,0.00019612,2]
[359740253,1746292239979,-167.17367774,0.00019612,2]
[359740255,1746292239988,-450.0,0.00019612,2]
[359740257,1746292239997,-450.0,0.00019612,2]
[359740259,1746292240007,-618.3,0.00019612,2]
[359740262,1746292240016,-3639.21,0.00019612,2]
[359740264,1746292240025,-450.0,0.00019612,2]
[359740266,1746292240035,-450.0,0.00019612,2]
[359740268,1746292240044,-450.0,0.00019612,2]
[359740270,1746292240053,-474.32117263,0.00019612,2]
[359740272,1746292240062,-450.0,0.00019612,2]
[359740274,1746292240072,-450.0,0.00019612,2]
[359740276,1746292240081,-450.0,0.00019612,2]
[359740278,1746292240090,-566.68,0.00019612,2]
[359740281,1746292240099,-3599.02,0.00019612,2]
[359740283,1746292240109,-790.81,0.00019612,2]
[359740285,1746292240118,-2635.09,0.00019612,2]
[359740287,1746292240127,-965.32,0.00019612,2]
[359740289,1746292240137,-450.0,0.00019612,2]
[359740291,1746292240145,-644.59,0.00019612,2]
[359740294,1746292240155,-450.0,0.00019612,2]
[359740296,1746292240164,-450.0,0.00019612,2]
[359740299,1746292240173,-450.0,0.00019612,2]
[359740301,1746292240184,-541.9,0.00019612,2]
[359740303,1746292240193,-450.0,0.00019612,2]
[359740305,1746292240203,-511.88,0.00019612,2]
[359740307,1746292240212,-450.0,0.00019612,2]
[359740309,1746292240221,-553.78,0.00019612,2]
[359740310,1746292240230,-450.0,0.00019612,2]
[359740312,1746292240240,-150.0,0.00019612,2]
[359740314,1746292240249,-552.33,0.00019612,2]
[359740316,1746292240258,-450.0,0.00019612,2]
[359740318,1746292240269,-1828.02,0.00019612,2]
[359740320,1746292240278,-450.0,0.00019612,2]
[359740322,1746292240287,-276.74108748,0.00019612,2]
[359740324,1746292240296,-450.0,0.00019612,2]
[359740326,1746292240305,-450.0,0.00019612,2]
[359740328,1746292240314,-450.0,0.00019612,2]
[359740330,1746292240324,-290.0961764,0.00019612,2]
[359740332,1746292240333,-679.22,0.00019612,2]
[359740334,1746292240343,-280.71919491,0.00019612,2]
[359740336,1746292240353,-450.0,0.00019612,2]
[359740338,1746292240363,-1778.04,0.00019612,2]
[359740340,1746292240372,-450.0,0.00019612,2]
[359740342,1746292240382,-668.18,0.00019612,2]
[359740344,1746292240391,-450.0,0.00019612,2]
[359740346,1746292240400,-450.0,0.00019612,2]
[359740348,1746292240411,-450.0,0.00019612,2]
[359740350,1746292240420,-450.0,0.00019612,2]
[359740352,1746292240431,-807.23,0.00019612,2]
[359740354,1746292240441,-450.0,0.00019612,2]
[359740356,1746292240451,-412.14685447,0.00019612,2]
[359740358,1746292240460,-804.88,0.00019612,2]
[359740360,1746292240469,-450.0,0.00019612,2]
[359740362,1746292240479,-450.0,0.00019612,2]
[359740364,1746292240489,-849.36,0.00019612,2]
[359740366,1746292240498,-450.0,0.00019612,2]
[359740368,1746292240508,-450.0,0.00019612,2]
[359740370,1746292240517,-311.31525845,0.00019612,2]
[359740372,1746292240526,-450.0,0.00019612,2]
[359740374,1746292240535,-1666.22,0.00019612,2]
[359740376,1746292240544,-644.11,0.00019612,2]
[359740378,1746292240553,-474.22018623,0.00019612,2]
[359740380,1746292240563,-556.46148673,0.00019612,2]
[359740382,1746292240572,-1011.12,0.00019612,2]
[359740383,1746292240581,-450.0,0.00019612,2]
[359740385,1746292240591,-5476.91,0.00019612,2]
[359740388,1746292240601,-450.0,0.00019612,2]
[359740390,1746292240610,-3307.35,0.00019612,2]
[359740392,1746292240619,-452.75,0.00019612,2]
[359740394,1746292240629,-450.0,0.00019612,2]
[359740396,1746292240638,-450.0,0.00019612,2]
[359740397,1746292240648,-450.0,0.00019612,2]
[359740400,1746292240657,-450.0,0.00019612,2]
[359740401,1746292240668,-474.22776786,0.00019612,2]
[359740402,1746292240677,-450.0,0.00019612,2]
[359740403,1746292240688,-450.0,0.00019612,2]
[359740404,1746292240697,-479.31271413,0.00019612,2]
[359740405,1746292240708,-450.0,0.00019612,2]
[359740406,1746292240717,-450.0,0.00019612,2]
[359740407,1746292240726,-450.0,0.00019612,2]
[359740408,1746292240735,-6577.89,0.00019612,2]
[359740409,1746292240744,-471.56831048,0.00019612,2]
[359740410,1746292240753,-450.0,0.00019612,2]
[359740411,1746292240765,-472.79538287,0.00019612,2]
[359740412,1746292240774,-450.0,0.00019612,2]
[359740413,1746292240783,-450.0,0.00019613,2]
[359740414,1746292240792,-450.0,0.00019613,2]
[359740415,1746292240801,-500.0,0.00019613,2]
[359740416,1746292240810,-450.0,0.00019613,2]
[359740417,1746292240820,-450.0,0.00019613,2]
[359740418,1746292240829,-450.0,0.00019613,2]
[359740419,1746292240839,-450.0,0.00019613,2]
[359740420,1746292240848,-450.0,0.00019613,2]
[359740421,1746292240857,-450.0,0.00019613,2]
[359740422,1746292240867,-450.0,0.00019613,2]
[359740423,1746292240876,-450.0,0.00019613,2]
[359740424,1746292240885,-499.04539545,0.00019613,2]
[359740425,1746292240894,-450.0,0.00019613,2]
[359740426,1746292240903,-450.0,0.00019613,2]
[359740427,1746292240913,-618.17,0.00019613,2]
[359740428,1746292240923,-450.0,0.00019613,2]
[359740429,1746292240932,-450.0,0.00019613,2]
[359740430,1746292240943,-450.0,0.00019613,2]
[359740431,1746292240953,-558.87,0.00019613,2]
[359740432,1746292240963,-450.0,0.00019613,2]
[359740434,1746292240973,-450.0,0.00019613,2]
[359740435,1746292240982,-450.0,0.00019613,2]
[359740436,1746292240992,-506.09,0.00019613,2]
[359740438,1746292241002,-495.78440254,0.00019613,2]
[359740440,1746292241011,-450.0,0.00019613,2]
[359740442,1746292241021,-450.0,0.00019613,2]
[359740444,1746292241030,-450.0,0.00019613,2]
[359740446,1746292241040,-450.0,0.00019613,2]
[359740447,1746292241049,-450.0,0.00019613,2]
[359740448,1746292241058,-972.62,0.00019613,2]
[359740449,1746292241067,-460.29768648,0.00019613,2]
[359740450,1746292241077,-450.0,0.00019613,2]
[359740451,1746292241087,-462.55021192,0.00019613,2]
[359740452,1746292241096,-300.0,0.00019613,2]
[359740453,1746292241105,-531.95,0.00019613,2]
[359740454,1746292241115,-450.0,0.00019613,2]
[359740455,1746292241124,-450.0,0.00019613,2]
[359740456,1746292241133,-647.39,0.00019613,2]
[359740457,1746292241142,-450.0,0.00019613,2]
[359740458,1746292241152,-817.55,0.00019613,2]
[359740459,1746292241161,-450.0,0.00019613,2]
[359740460,1746292241170,-450.0,0.00019613,2]
[359740461,1746292241179,-450.0,0.00019613,2]
[359740462,1746292241189,-450.0,0.00019613,2]
[359740463,1746292241199,-450.0,0.00019613,2]
[359740464,1746292241208,-450.0,0.00019613,2]
[359740465,1746292241217,-566.40820346,0.00019613,2]
[359740466,1746292241226,-450.0,0.00019613,2]
[359740467,1746292241235,-450.0,0.00019613,2]
[359740468,1746292241245,-565.46,0.00019613,2]
[359740469,1746292241254,-450.0,0.00019613,2]
[359740470,1746292241264,-450.0,0.00019613,2]
[359740471,1746292241273,-450.0,0.00019613,2]
[359740472,1746292241282,-450.0,0.00019613,2]
[359740473,1746292241293,-450.0,0.00019613,2]
[359740474,1746292241302,-450.0,0.00019613,2]
[359740475,1746292241311,-450.0,0.00019613,2]
[359740476,1746292241320,-450.0,0.00019613,2]
[359740477,1746292241330,-450.0,0.00019613,2]
[359740478,1746292241339,-450.0,0.00019613,2]
[359740479,1746292241349,-450.0,0.00019613,2]
[359740480,1746292241358,-2323.97,0.00019613,2]
[359740481,1746292241367,-450.0,0.00019613,2]
[359740482,1746292241376,-450.0,0.00019613,2]
[359740483,1746292241387,-452.66416676,0.00019613,2]
[359740484,1746292241397,-450.0,0.00019613,2]
[359740485,1746292241408,-450.0,0.00019613,2]
[359740486,1746292241419,-503.21061387,0.00019613,2]
[359740487,1746292241429,-412.52998212,0.00019613,2]
[359740488,1746292241441,-450.0,0.00019613,2]
[359740489,1746292241457,-450.0,0.00019613,2]
[359740490,1746292241466,-450.0,0.00019613,2]
[359740491,1746292241476,-512.74,0.00019613,2]
[359740492,1746292241486,-450.0,0.00019613,2]
[359740493,1746292241496,-1102.1,0.00019613,2]
[359740494,1746292241505,-450.0,0.00019613,2]
[359740495,1746292241514,-450.0,0.00019613,2]
[359740496,1746292241524,-585.96399907,0.00019613,2]
[359740497,1746292241533,-1164.13,0.00019613,2]
[359740498,1746292241543,-450.0,0.00019613,2]
[359740499,1746292241552,-503.37,0.00019613,2]
[359740500,1746292241561,-450.0,0.00019613,2]
[359740501,1746292241571,-397.43576648,0.00019613,2]
[359740502,1746292241580,-411.68950583,0.00019613,2]
[359740503,1746292241590,-450.0,0.00019613,2]
[359740504,1746292241599,-463.1561537,0.00019613,2]
[359740505,1746292241608,-472.83333276,0.00019613,2]
[359740506,1746292241618,-450.0,0.00019613,2]
[359740507,1746292241627,-290.0,0.00019613,2]
[359740508,1746292241637,-450.0,0.00019613,2]
[359740509,1746292241646,-500.0,0.00019613,2]
[359740510,1746292241655,-1274.71044628,0.00019641,2]
[359740511,1746292241664,-1041.98058239,0.00019641,2]
[359740512,1746292241674,-162.91081726,0.00019642,2]
[359740513,1746292241683,-500.0,0.00019673,2]
[359740514,1746292241693,-153.57106754,0.00019673,2]
[359740515,1746292241703,-500.0,0.00019673,2]
[359740516,1746292241712,-500.0,0.00019673,2]
[359740517,1746292241723,-501.02155493,0.00019673,2]
[359740518,1746292241732,-500.0,0.00019673,2]
[359740519,1746292241742,-500.0,0.00019673,2]
[359740520,1746292241752,-500.0,0.00019673,2]
[359740521,1746292241762,-400.96451374,0.00019673,2]
[359740522,1746292241771,-500.0,0.00019673,2]
[359740523,1746292241781,-500.0,0.00019673,2]
[359740524,1746292241790,-500.0,0.00019673,2]
[359740525,1746292241800,-500.0,0.00019673,2]
[359740526,1746292241810,-500.0,0.00019673,2]
[359740527,1746292241819,-1274.71044628,0.00019684,2]
[359740528,1746292241829,-1041.98058239,0.00019684,2]
[359740529,1746292241838,-1000.0,0.000197,2]
[359740530,1746292241848,-7342.01,0.000197,2]
[359740531,1746292241858,-1274.71044628,0.00019728,2]
[359740532,1746292241868,-1041.98058239,0.00019728,2]
[359740533,1746292241878,-150.0,0.00019728,2]
[359740534,1746292241888,-150.0,0.00019736,2]
[359740535,1746292241899,-500.96550993,0.00019742,2]
[359740536,1746292242108,-150.0,0.00019757,2]
[359740537,1746292242119,-250.0,0.00019758,2]
[359740538,1746292242129,-150.0,0.0001976,2]
[359740539,1746292242139,-150.0,0.0001977,2]
[359740540,1746292242149,-1274.71044628,0.00019771,2]
[359740541,1746292242158,-1041.98058239,0.00019771,2]
[359740542,1746292242169,-154.430521,0.00019772,2]
[359740543,1746292242178,-169.266645,0.00019772,2]
[359740544,1746292242189,-150.0,0.00019773,2]
[359740545,1746292242199,-150.0,0.00019777,2]
[359740546,1746292242209,-150.0,0.00019779,2]
[359740547,1746292242219,-287.0,0.00019781,2]
[359740548,1746292242229,-150.0,0.00019791,2]
[359740549,1746292242238,-154.430521,0.00019792,2]
[359740550,1746292242248,-169.266645,0.00019792,2]
[359740551,1746292242258,-150.0,0.00019798,2]
[359740552,1746292242267,-1833.1410188,0.00019799,2]
[359740553,1746292242276,-1000.0,0.000198,2]
[359740554,1746292242286,-150.0,0.00019811,2]
[359740555,1746292242296,-691.5193551,0.00019811,2]
[359740556,1746292242305,-150.0,0.00019813,2]
[359740557,1746292242314,-1274.71044628,0.00019814,2]
[359740558,1746292242323,-1041.98058239,0.00019814,2]
[359740559,1746292242332,-150.0,0.00019817,2]
[359740560,1746292242341,-189.93650603,0.00019822,2]
[359740561,1746292242350,-500.0,0.00019836,2]
[359740562,1746292242358,-150.0,0.00019837,2]
[359740563,1746292242368,-500.0,0.0001984,2]
[359740564,1746292242377,-2000.0,0.0001984,2]
[359740565,1746292242386,-500.0,0.0001984,2]
[359740566,1746292242396,-200.0,0.0001984,2]
[359740567,1746292242406,-1274.71044628,0.00019857,2]
[359740568,1746292242417,-150.0,0.00019865,2]
[359740569,1746292242427,-500.0,0.00019873,2]
[359740570,1746292242438,-500.0,0.00019873,2]
[359740571,1746292242448,-501.21994559,0.00019873,2]
[359740572,1746292242457,-500.0,0.00019873,2]
[359740573,1746292242467,-500.0,0.00019873,2]
[359740574,1746292242477,-500.0,0.00019873,2]
[359740575,1746292242486,-502.98408913,0.00019873,2]
[359740576,1746292242496,-500.0,0.00019873,2]
[359740577,1746292242505,-500.0,0.00019873,2]
[359740578,1746292242515,-500.0,0.00019873,2]
[359740579,1746292242524,-209.60510291,0.00019873,2]
[359740580,1746292242533,-500.68481339,0.00019873,2]
[359740581,1746292242543,-500.0,0.00019873,2]
[359740582,1746292242552,-500.0,0.00019873,2]
[359740583,1746292242561,-452.2335742,0.00019886,2]
[359740584,1746292242571,-211.18746322,0.00019886,2]
[359740585,1746292242580,-562.40616649,0.00019886,2]
[359740586,1746292242589,-450.0,0.00019886,2]
[359740587,1746292242599,-450.0,0.00019886,2]
[359740588,1746292242608,-316.67510091,0.00019886,2]
[359740589,1746292242618,-450.0,0.00019886,2]
[359740590,1746292242627,-450.0,0.00019886,2]
[359740591,1746292242637,-450.0,0.00019886,2]
[359740592,1746292242646,-520.33,0.00019886,2]
[359740593,1746292242657,-450.0,0.00019886,2]
[359740594,1746292242666,-450.0,0.00019886,2]
[359740595,1746292242675,-553.97,0.00019886,2]
[359740596,1746292242685,-181.59,0.00019886,2]
[359740597,1746292242695,-450.0,0.00019886,2]
[359740598,1746292242705,-1388.54,0.00019886,2]
[359740599,1746292242715,-168.70053879,0.00019886,2]
[359740600,1746292242724,-507.84,0.00019886,2]
[359740601,1746292242733,-682.47,0.00019886,2]
[359740602,1746292242742,-450.0,0.00019886,2]
[359740603,1746292242752,-500.0,0.00019886,2]
[359740604,1746292242763,-520.67705875,0.00019886,2]
[359740605,1746292242773,-500.0,0.00019886,2]
[359740606,1746292242782,-450.0,0.00019886,2]
[359740607,1746292242791,-450.0,0.00019886,2]
[359740608,1746292242801,-450.0,0.00019886,2]
[359740609,1746292242810,-557.94548119,0.00019886,2]
[359740610,1746292242819,-450.0,0.00019886,2]
[359740611,1746292242828,-1024.44,0.00019886,2]
[359740612,1746292242838,-500.0,0.00019886,2]
[359740613,1746292242847,-500.0,0.00019886,2]
[359740614,1746292242856,-450.0,0.00019886,2]
[359740615,1746292242865,-595.98,0.00019886,2]
[359740616,1746292242875,-494.94,0.00019886,2]
[359740617,1746292242885,-450.0,0.00019886,2]
[359740618,1746292242894,-450.0,0.00019886,2]
[359740619,1746292242904,-450.0,0.00019886,2]
[359740620,1746292242914,-450.0,0.00019886,2]
[359740621,1746292242923,-550.54,0.00019886,2]
[359740622,1746292242935,-515.34,0.00019886,2]
[359740623,1746292242945,-450.0,0.00019886,2]
[359740624,1746292242954,-450.0,0.00019886,2]
[359740625,1746292242963,-450.0,0.00019886,2]
[359740626,1746292242972,-450.0,0.00019886,2]
[359740627,1746292242982,-450.0,0.00019886,2]
[359740628,1746292242991,-450.0,0.00019886,2]
[359740629,1746292243000,-450.0,0.00019886,2]
[359740630,1746292243010,-450.0,0.00019886,2]
[359740631,1746292243019,-450.0,0.00019886,2]
[359740632,1746292243029,-450.0,0.00019886,2]
[359740633,1746292243038,-450.0,0.00019886,2]
[359740634,1746292243048,-450.0,0.00019886,2]
[359740635,1746292243057,-450.0,0.00019886,2]
[359740636,1746292243066,-450.0,0.00019886,2]
[359740637,1746292243075,-575.67,0.00019886,2]
[359740638,1746292243085,-619.94,0.00019886,2]
[359740639,1746292243094,-450.0,0.00019886,2]
[359740640,1746292243104,-450.0,0.00019886,2]
[359740641,1746292243113,-1517.71,0.00019886,2]
[359740642,1746292243123,-450.0,0.00019886,2]
[359740643,1746292243133,-450.0,0.00019886,2]
[359740644,1746292243142,-890.1,0.00019886,2]
[359740645,1746292243152,-450.0,0.00019886,2]
[359740646,1746292243162,-202.6477267,0.00019886,2]
[359740647,1746292243172,-647.07,0.00019886,2]
[359740648,1746292243181,-611.7,0.00019886,2]
[359740649,1746292243193,-751.46,0.00019886,2]
[359740650,1746292243202,-450.0,0.00019886,2]
[359740651,1746292243212,-741.49,0.00019886,2]
[359740652,1746292243221,-482.9,0.00019886,2]
[359740653,1746292243231,-450.0,0.00019886,2]
[359740654,1746292243240,-208.3762102,0.00019886,2]
[359740655,1746292243249,-450.0,0.00019886,2]
[359740656,1746292243259,-625.08,0.00019886,2]
[359740657,1746292243269,-450.0,0.00019886,2]
[359740658,1746292243278,-450.0,0.00019886,2]
[359740659,1746292243287,-450.0,0.00019886,2]
[359740660,1746292243296,-450.0,0.00019886,2]
[359740661,1746292243307,-507.79,0.00019886,2]
[359740662,1746292243316,-450.0,0.00019886,2]
[359740663,1746292243326,-450.0,0.00019886,2]
[359740664,1746292243335,-450.0,0.00019886,2]
[359740665,1746292243344,-1010.84,0.00019886,2]
[359740666,1746292243354,-450.0,0.00019886,2]
[359740667,1746292243363,-450.0,0.00019886,2]
[359740668,1746292243373,-450.0,0.00019886,2]
[359740669,1746292243383,-450.0,0.00019886,2]
[359740670,1746292243398,-450.0,0.00019886,2]
[359740671,1746292243408,-450.0,0.00019886,2]
[359740672,1746292243418,-461.94,0.00019886,2]
[359740673,1746292243427,-450.0,0.00019886,2]
[359740674,1746292243438,-450.0,0.00019886,2]
[359740675,1746292243448,-450.0,0.00019886,2]
[359740676,1746292243457,-450.0,0.00019886,2]
[359740677,1746292243467,-363.22128551,0.00019886,2]
[359740678,1746292243478,-450.0,0.00019886,2]
[359740679,1746292243488,-450.0,0.00019886,2]
[359740680,1746292243497,-450.0,0.00019886,2]
[359740681,1746292243508,-799.4,0.00019886,2]
[359740682,1746292243517,-450.0,0.00019886,2]
[359740683,1746292243527,-450.0,0.00019886,2]
[359740684,1746292243536,-450.0,0.00019886,2]
[359740685,1746292243546,-450.0,0.00019886,2]
[359740686,1746292243555,-450.0,0.00019886,2]
[359740687,1746292243564,-1197.95,0.00019886,2]
[359740688,1746292243574,-727.87,0.00019886,2]
[359740689,1746292243583,-450.0,0.00019886,2]
[359740690,1746292243593,-476.87,0.00019886,2]
[359740691,1746292243602,-450.0,0.00019886,2]
[359740692,1746292243612,-450.0,0.00019886,2]
[359740693,1746292243622,-450.0,0.00019886,2]
[359740694,1746292243631,-450.0,0.00019886,2]
[359740695,1746292243641,-1362.47,0.00019886,2]
[359740696,1746292243650,-450.0,0.00019886,2]
[359740697,1746292243660,-450.0,0.00019886,2]
[359740698,1746292243670,-450.0,0.00019886,2]
[359740699,1746292243679,-450.0,0.00019886,2]
[359740700,1746292243690,-581.55,0.00019886,2]
[359740701,1746292243699,-275.45795138,0.00019886,2]
[359740702,1746292243709,-496.27,0.00019886,2]
[359740703,1746292243718,-450.0,0.00019886,2]
[359740704,1746292243728,-450.0,0.00019886,2]
[359740705,1746292243737,-450.0,0.00019886,2]
[359740706,1746292243746,-450.0,0.00019886,2]
[359740707,1746292243755,-450.0,0.00019886,2]
[359740708,1746292243765,-797.1,0.00019886,2]
[359740709,1746292243774,-450.0,0.00019886,2]
[359740710,1746292243783,-2858.8,0.00019886,2]
[359740711,1746292243792,-688.65,0.00019886,2]
[359740712,1746292243802,-450.0,0.00019886,2]
[359740713,1746292243811,-527.38,0.00019886,2]
[359740714,1746292243821,-532.18838209,0.00019886,2]
[359740715,1746292243830,-450.0,0.00019886,2]
[359740716,1746292243839,-450.0,0.00019886,2]
[359740717,1746292243849,-4363.49,0.00019886,2]
[359740718,1746292243858,-450.0,0.00019886,2]
[359740719,1746292243867,-2250.56,0.00019886,2]
[359740720,1746292243877,-450.0,0.00019886,2]
[359740721,1746292243886,-638.22,0.00019886,2]
[359740722,1746292243895,-980.34,0.00019886,2]
[359740723,1746292243904,-450.0,0.00019886,2]
[359740724,1746292243913,-450.0,0.00019886,2]
[359740725,1746292243923,-450.0,0.00019886,2]
[359740726,1746292243932,-956.99,0.00019886,2]
[359740727,1746292243942,-707.04,0.00019886,2]
[359740728,1746292243951,-2076.58,0.00019886,2]
[359740729,1746292243960,-593.05,0.00019886,2]
[359740730,1746292243969,-570.26,0.00019886,2]
[359740731,1746292243978,-450.0,0.00019886,2]
[359740732,1746292243987,-96986.69,0.00019886,2]
[359740733,1746292243996,-623.6,0.00019886,2]
[359740734,1746292244005,-624.94,0.00019886,2]
[359740735,1746292244015,-551.02,0.00019886,2]
[359740736,1746292244026,-222.06695475,0.00019886,2]
[359740737,1746292244036,-519.79,0.00019886,2]
[359740738,1746292244046,-1765.34,0.00019886,2]
[359740739,1746292244056,-450.0,0.00019886,2]
[359740740,1746292244066,-4266.65,0.00019886,2]
[359740741,1746292244075,-466.82,0.00019886,2]
[359740742,1746292244084,-450.0,0.00019886,2]
[359740743,1746292244094,-450.0,0.00019886,2]
[359740744,1746292244104,-566.03,0.00019886,2]
[359740745,1746292244113,-450.0,0.00019886,2]
[359740746,1746292244122,-20514.36,0.00019886,2]
[359740747,1746292244132,-450.0,0.00019886,2]
[359740748,1746292244141,-450.0,0.00019886,2]
[359740749,1746292244151,-450.0,0.00019886,2]
[359740750,1746292244160,-450.0,0.00019886,2]
[359740751,1746292244170,-745.86,0.00019886,2]
[359740752,1746292244179,-1431.55,0.00019886,2]
[359740753,1746292244189,-516.41503227,0.00019886,2]
[359740754,1746292244198,-450.0,0.00019886,2]
[359740755,1746292244208,-450.0,0.00019886,2]
[359740756,1746292244217,-562.46,0.00019886,2]
[359740757,1746292244229,-450.0,0.00019886,2]
[359740758,1746292244239,-13484.45,0.00019886,2]
[359740759,1746292244249,-450.0,0.00019886,2]
[359740760,1746292244259,-450.0,0.00019886,2]
[359740761,1746292244269,-94752.53,0.00019886,2]
[359740762,1746292244278,-488.59,0.00019886,2]
[359740763,1746292244288,-450.0,0.00019886,2]
[359740764,1746292244297,-450.0,0.00019886,2]
[359740765,1746292244307,-500.36,0.00019886,2]
[359740766,1746292244316,-1330.69,0.00019886,2]
[359740767,1746292244325,-958.55,0.00019886,2]
[359740768,1746292244335,-450.0,0.00019886,2]
[359740769,1746292244344,-450.0,0.00019886,2]
[359740770,1746292244354,-450.0,0.00019886,2]
[359740771,1746292244364,-450.0,0.00019886,2]
[359740772,1746292244374,-2158.71,0.00019886,2]
[359740773,1746292244384,-450.0,0.00019886,2]
[359740774,1746292244395,-450.0,0.00019886,2]
[359740775,1746292244406,-450.0,0.00019886,2]
[359740776,1746292244416,-450.0,0.00019886,2]
[359740777,1746292244485,-450.0,0.00019886,2]
[359740778,1746292244494,-450.0,0.00019886,2]
[359740779,1746292244504,-450.0,0.00019886,2]
[359740780,1746292244514,-493.93,0.00019886,2]
[359740781,1746292244523,-450.0,0.00019886,2]
[359740782,1746292244532,-450.0,0.00019886,2]
[359740783,1746292244541,-450.0,0.00019886,2]
[359740784,1746292244550,-450.0,0.00019886,2]
[359740785,1746292244559,-450.0,0.00019886,2]
[359740786,1746292244568,-1039.8,0.00019886,2]
[359740787,1746292244577,-450.0,0.00019886,2]
[359740788,1746292244586,-487.62,0.00019886,2]
[359740789,1746292244595,-450.0,0.00019886,2]
[359740790,1746292244604,-450.0,0.00019886,2]
[359740791,1746292244613,-450.0,0.00019886,2]
[359740792,1746292244622,-866.11,0.00019886,2]
[359740793,1746292244631,-772.19,0.00019886,2]
[359740794,1746292244641,-466.71,0.00019886,2]
[359740795,1746292244650,-999.0,0.00019886,2]
[359740796,1746292244659,-450.0,0.00019886,2]